Workbook

Sheet 4月份
A1: 陆 丰 市 2025 年 4 月 财 政 预 算 支 出 完 成 情 况 表
A2: 2025-04-30 | O2: 单位：万元
B3: 年 初 | C3: 年度预算计划 | F3: 累计 | G3: 占年 | H3: 上年 | I3: 比上年 | J3: 比上年 | K3: 本月 | L3: 上年 | M3: 比上年 | N3: 比上年
A4: 支 出 项 目 | B4: 预 算 | F4: 完成 | G4: 预算 | H4: 同期 | I4: 同期增 | J4: 同期增 | K4: 完成 | L4: 同月 | M4: 同月增 | N4: 同月增 | O4: 备 注
B5: 数 | C5: 上年结转 | D5: 上级补助 | E5: 本级安排 | F5: 数 | G5: % | H5: 完成 | I5: 减额 | J5: (减)% | K5: 数 | L5: 完成 | M5: 减额 | N5: (减)%
A6: 201、一般公共服务支出 | B6: 68,461 | D6: 2,450.00 | E6: 61,621 | F6: 21,542 | H6: 15,291 | I6: =F6-H6 -> 6,251 | J6: =IF(H6=0,"",I6/H6*100) -> 40.9 | K6: =+F6-'[1]3月份 '!F6 -> 4,059 | L6: =+H6-'[1]3月份 '!H6 -> 3,198 | M6: =K6-L6 -> 861 | N6: =IF(L6=0,"",M6/L6*100) -> 26.9 | Q6: 一般公共服务 | R6: 201 | S6: 一般公共服务支出 | T6: =VLOOKUP(R6,#REF!,3,FALSE) -> 
A7: 203、国防支出 | B7: 206 | D7: 52.00 | F7: 208 | I7: 208 | K7: =+F7-'[1]3月份 '!F7 -> 0 | L7: =+H7-'[1]3月份 '!H7 -> 0 | M7: 0 | Q7: 国防 | R7: 203 | S7: 国防支出 | T7: =VLOOKUP(R7,#REF!,3,FALSE) -> 
A8: 204、公共安全支出 | B8: 48,122 | D8: =637-10000 -> -9,363.00 | E8: 56,907 | F8: 15,215 | H8: 16,320 | I8: -1,105 | J8: -6.8 | K8: =+F8-'[1]3月份 '!F8 -> 3,541 | L8: =+H8-'[1]3月份 '!H8 -> 2,022 | M8: 1,519 | N8: 75.1 | Q8: 公共安全 | R8: 204 | S8: 公共安全支出 | T8: =VLOOKUP(R8,#REF!,3,FALSE) -> 
A9: 205、教育支出 | B9: 243,058 | D9: =52701-40000 -> 12,701.00 | E9: 230,306 | F9: 63,437 | H9: 56,161 | I9: 7,276 | J9: 13.0 | K9: =+F9-'[1]3月份 '!F9 -> 17,501 | L9: =+H9-'[1]3月份 '!H9 -> 14,058 | M9: 3,443 | N9: 24.5 | Q9: 教育 | R9: 205 | S9: 教育支出 | T9: =VLOOKUP(R9,#REF!,3,FALSE) -> 
A10: 206、科学技术支出 | B10: 1,653 | E10: 1,678 | F10: 213 | H10: 279 | I10: -66 | J10: -23.7 | K10: =+F10-'[1]3月份 '!F10 -> 29 | L10: =+H10-'[1]3月份 '!H10 -> 1 | M10: 28 | N10: 2800.0 | Q10: 科学技术 | R10: 206 | S10: 科学技术支出 | T10: =VLOOKUP(R10,#REF!,3,FALSE) -> 
A11: 207、文化体育与传媒支出 | B11: 8,167 | D11: 481.00 | E11: 19,936 | F11: 1,504 | H11: 1,497 | I11: 7 | J11: 0.5 | K11: =+F11-'[1]3月份 '!F11 -> 319 | L11: =+H11-'[1]3月份 '!H11 -> 222 | M11: 97 | N11: 43.7 | Q11: 文化旅游体育与传媒 | R11: 207 | S11: 文化旅游体育与传媒支出 | T11: =VLOOKUP(R11,#REF!,3,FALSE) -> 
A12: 208、社会保障和就业支出 | B12: 188,507 | D12: =42548 -> 42,548.00 | E12: 138,253 | F12: 69,604 | H12: 76,461 | I12: -6,857 | J12: -9.0 | K12: =+F12-'[1]3月份 '!F12 -> 11,805 | L12: =+H12-'[1]3月份 '!H12 -> 9,402 | M12: 2,403 | N12: 25.6 | Q12: 社会保障和就业 | R12: 208 | S12: 社会保障和就业支出 | T12: =VLOOKUP(R12,#REF!,3,FALSE) -> 
A13: 210、卫生健康支出 | B13: 147,494 | D13: 18,413.00 | E13: 142,504 | F13: 84,860 | H13: 86,474 | I13: -1,614 | J13: -1.9 | K13: =+F13-'[1]3月份 '!F13 -> 3,277 | L13: =+H13-'[1]3月份 '!H13 -> 3,771 | M13: -494 | N13: -13.1 | Q13: 卫生健康 | R13: 210 | S13: 卫生健康支出 | T13: =VLOOKUP(R13,#REF!,3,FALSE) -> 
A14: 211、节能环保支出 | B14: 4,662 | D14: =164-2000 -> -1,836.00 | E14: 7,144 | F14: 296 | H14: 478 | I14: -182 | J14: -38.1 | K14: =+F14-'[1]3月份 '!F14 -> 101 | L14: =+H14-'[1]3月份 '!H14 -> (1) | M14: 102 | N14: -10200.0 | Q14: 节能环保 | R14: 211 | S14: 节能环保支出 | T14: =VLOOKUP(R14,#REF!,3,FALSE) -> 
A15: 212、城乡社区支出 | B15: 17,700 | D15: 777.00 | E15: 38,910 | F15: 7,558 | H15: 6,934 | I15: 624 | J15: 9.0 | K15: =+F15-'[1]3月份 '!F15 -> 1,426 | L15: =+H15-'[1]3月份 '!H15 -> 1,168 | M15: 258 | N15: 22.1 | Q15: 城乡社区 | R15: 212 | S15: 城乡社区支出 | T15: =VLOOKUP(R15,#REF!,3,FALSE) -> 
A16: 213、农林水支出 | B16: 88,375 | D16: =68303-50000 -> 18,303.00 | E16: 119,233 | F16: 24,064 | H16: 15,748 | I16: 8,316 | J16: 52.8 | K16: =+F16-'[1]3月份 '!F16 -> 3,825 | L16: =+H16-'[1]3月份 '!H16 -> 3,894 | M16: -69 | N16: -1.8 | Q16: 农林水 | R16: 213 | S16: 农林水支出 | T16: =VLOOKUP(R16,#REF!,3,FALSE) -> 
A17: 214、交通运输支出 | B17: 27,981 | D17: 11,585.00 | E17: 16,226 | F17: 7,387 | H17: 3,683 | I17: 3,704 | J17: 100.6 | K17: =+F17-'[1]3月份 '!F17 -> 424 | L17: =+H17-'[1]3月份 '!H17 -> 182 | M17: 242 | N17: 133.0 | Q17: 交通运输 | R17: 214 | S17: 交通运输支出 | T17: =VLOOKUP(R17,#REF!,3,FALSE) -> 
A18: 215、资源勘探工业信息等支出 | B18: 543 | E18: 508 | F18: 124 | H18: 207 | I18: -83 | J18: -40.1 | K18: =+F18-'[1]3月份 '!F18 -> 15 | L18: =+H18-'[1]3月份 '!H18 -> 7 | M18: 8 | N18: 114.3 | Q18: 资源勘探工业信息等 | R18: 215 | S18: 资源勘探工业信息等支出 | T18: =VLOOKUP(R18,#REF!,3,FALSE) -> 
A19: 216、商业服务业等支出 | B19: 641 | E19: 1,251 | F19: 375 | H19: 551 | I19: -176 | J19: -31.9 | K19: =+F19-'[1]3月份 '!F19 -> 46 | L19: =+H19-'[1]3月份 '!H19 -> 20 | M19: 26 | N19: 130.0 | Q19: 商业服务业等 | R19: 216 | S19: 商业服务业等支出 | T19: =VLOOKUP(R19,#REF!,3,FALSE) -> 
A20: 217、金融支出 | B20: 0 | E20: 0 | F20: 0 | H20: 1 | I20: -1 | J20: -100.0 | K20: =+F20-'[1]3月份 '!F20 -> 0 | L20: =+H20-'[1]3月份 '!H20 -> 0 | M20: 0 | Q20: 金融 | R20: 217 | S20: 金融支出 | T20: =VLOOKUP(R20,#REF!,3,FALSE) -> 
A21: 220、自然资源海洋气象等支出 | B21: 4,180 | E21: 4,866 | F21: 1,366 | H21: 970 | I21: 396 | J21: 40.8 | K21: =+F21-'[1]3月份 '!F21 -> 136 | L21: =+H21-'[1]3月份 '!H21 -> 158 | M21: -22 | N21: -13.9 | Q21: 自然资源海洋气象等 | R21: 220 | S21: 自然资源海洋气象等支出 | T21: =VLOOKUP(R21,#REF!,3,FALSE) -> 
A22: 221、住房保障支出 | B22: 19,543 | D22: =3350-7000 -> -3,650.00 | E22: 18,068 | F22: 6,040 | H22: 3,083 | I22: 2,957 | J22: 95.9 | K22: =+F22-'[1]3月份 '!F22 -> 1,500 | L22: =+H22-'[1]3月份 '!H22 -> 800 | M22: 700 | N22: 87.5 | Q22: 住房保障 | R22: 221 | S22: 住房保障支出 | T22: =VLOOKUP(R22,#REF!,3,FALSE) -> 
A23: 222、粮油物资储备支出 | B23: 2,650 | E23: 3,190 | F23: 500 | H23: 400 | I23: 100 | J23: 25.0 | K23: =+F23-'[1]3月份 '!F23 -> 0 | L23: =+H23-'[1]3月份 '!H23 -> 0 | M23: 0 | Q23: 粮油物资储备 | R23: 222 | S23: 粮油物资储备支出 | T23: =VLOOKUP(R23,#REF!,3,FALSE) -> 
A24: 224、灾害防治及应急管理支出 | B24: 3,407 | D24: 115.00 | E24: 3,253 | F24: 1,599 | H24: 838 | I24: 761 | J24: 90.8 | K24: =+F24-'[1]3月份 '!F24 -> 325 | L24: =+H24-'[1]3月份 '!H24 -> 375 | M24: -50 | N24: -13.3 | Q24: 灾害防治及应急管理 | R24: 224 | S24: 灾害防治及应急管理支出 | T24: =VLOOKUP(R24,#REF!,3,FALSE) -> 
A25: 232、债务付息支出 | B25: 5,500 | D25: -1100 | E25: 2,400 | F25: 1,004 | H25: 689 | I25: 315 | J25: 45.7 | K25: =+F25-'[1]3月份 '!F25 -> 0 | L25: =+H25-'[1]3月份 '!H25 -> 669 | M25: -669 | N25: -100.0 | Q25: 债务付息 | R25: 232 | S25: 债务付息支出 | T25: =VLOOKUP(R25,#REF!,3,FALSE) -> 
A26: 233、债务发行费用支出 | D26: -84 | E26: 100 | F26: 31 | H26: 28 | I26: 3 | J26: 10.7 | K26: =+F26-'[1]3月份 '!F26 -> 31 | L26: =+H26-'[1]3月份 '!H26 -> 22 | M26: 9 | N26: 40.9 | Q26: 债务发行费用 | R26: 233 | S26: 债务发行费用支出 | T26: =VLOOKUP(R26,#REF!,3,FALSE) -> 
A27: 227、预备费 | B27: 10,000 | E27: 0 | F27: 0 | H27: 0 | I27: 0 | K27: =+F27-'[1]3月份 '!F27 -> 0 | L27: =+H27-'[1]3月份 '!H27 -> 0 | M27: 0 | Q27: 预备费 | T27: =VLOOKUP(R27,#REF!,3,FALSE) -> 
A28: 229、其他支出 | B28: 17,121 | E28: 47,350 | F28: 58 | H28: 691 | I28: -633 | J28: -91.6 | K28: =+F28-'[1]3月份 '!F28 -> 0 | L28: =+H28-'[1]3月份 '!H28 -> 18 | M28: -18 | N28: -100.0 | Q28: 其他支出 | R28: 229 | S28: 其他支出 | T28: =VLOOKUP(R28,#REF!,3,FALSE) -> 
A29: 一、一般公共预算支出合计 | B29: =SUM(B6:B28) -> 907,971 | C29: 0 | D29: 91,392 | E29: 913,704 | F29: 306,985 | G29: =F29/B29*100 -> 33.8 | H29: =SUM(H6:H28) -> 286,784 | I29: 20,201 | J29: 7.0 | K29: 48,360 | L29: 39,986 | M29: 8,374 | N29: 20.9
A30: 二、政府性基金预算支出 | B30: 377,936 | D30: 121800 | E30: 192,576 | F30: 92,464 | H30: 42,209 | I30: 50,255 | J30: 119.1 | K30: =+F30-'[1]3月份 '!F30 -> 3,055 | L30: =+H30-'[1]3月份 '!H30 -> 7,275 | M30: -4,220 | N30: -58.0
A31: 三、国有资本经营支出 | B31: 619 | E31: 963 | F31: 642 | H31: 305 | I31: 337 | J31: 110.5 | K31: =+F31-'[1]3月份 '!F31 -> 200 | L31: =+H31-'[1]3月份 '!H31 -> 0 | M31: 200
A32: 四、债务还本支出 | B32: 2,000 | F32: 0 | H32: 41,005 | I32: -41,005 | J32: -100.0 | K32: =+F32-'[1]3月份 '!F32 -> 0 | L32: =+H32-'[1]3月份 '!H32 -> 38,125 | M32: -38,125 | N32: -100.0
A33: 支出合计 | B33: =B29+B30+B31+B32 -> 1,288,526 | C33: =C29+C30+C31 -> 0 | D33: =D29+D30+D31 -> 213,192 | E33: =E29+E30+E31 -> 1,107,243 | F33: =F29+F30+F31+F32 -> 400,091 | G33: =F33/B33*100 -> 31.1 | H33: 370,303 | I33: 29,788 | J33: 8.0 | K33: 51,615 | L33: 85,386 | M33: -33,771 | N33: -39.6
